Cogmind - Beta 14 @@@ ROGUE MODE // 2025.01.18 @ 12:07:04 Player: Not Root Result: Destroyed by G-47 Trooper with Particle Gun Performance ------------- Evolutions (0) 0 Regions Visited (2) 400 Robots Destroyed (10) 50 Value Destroyed (210) 210 Prototype IDs (2) 40 Alien Tech Used (0) 0 Bonus (50) 50 TOTAL SCORE: 750 Bonus ------- Follower Combat Kills 50 Cogmind --------- Core Integrity 0/250 Matter 290/300 Energy 82/100 System Corruption 0% Temperature Cool (18) Movement Core (50) Location -10/Mines Parts ------- > --- POWER (1) -------- (None) > --- PROPULSION (2) --- (None) > --- UTILITY (2) ------ (None) > --- WEAPON (2) ------- Small Laser > --- INVENTORY (5) ---- Ion Engine Ion Engine Aluminum Leg Heat Sink Peak State ------------ > --- POWER ------------ Ion Engine > --- PROPULSION ------- Aluminum Leg Aluminum Leg > --- UTILITY ---------- Improved Terrain Scanner Seismic Detector > --- WEAPON ----------- EM Pulse Gun Assault Rifle > --- INVENTORY -------- Ion Engine [Rating: 9] Favorites ----------- Power Ion Engine Engine Ion Engine Propulsion Aluminum Leg Leg Aluminum Leg Utility Seismic Detector Device Seismic Detector Storage Small Storage Unit Weapon Assault Rifle Energy Gun EM Pulse Gun Ballistic Gun Assault Rifle Build | -11 -10 -10 ------- Run | Yrd Mat Min Slots Evolved . | . . . Power . | . . . Propulsion . | . . . Utility . | . . . Weapon . | . . . Parts Attached 10 | 8 . 2 Power 1 | 1 . . Engine 1 | 1 . . Core . | . . . Reactor . | . . . Propulsion 2 | 2 . . Treads . | . . . Leg 2 | 2 . . Wheel . | . . . Hover . | . . . Flight . | . . . Utility 3 | 3 . . Device 2 | 2 . . Storage 1 | 1 . . Processor . | . . . Hackware . | . . . Protection . | . . . Artifact . | . . . Weapon 4 | 2 . 2 Energy Gun 3 | 1 . 2 Energy Cannon . | . . . Ballistic Gun 1 | 1 . . Ballistic Cannon . | . . . Launcher . | . . . Special Weapon . | . . . Impact Weapon . | . . . Slashing Weapon . | . . . Piercing Weapon . | . . . Special Melee Weapon . | . . . Unidentified Prototypes . | . . . Parts Lost 8 | . . 8 Power 1 | . . 1 Propulsion 2 | . . 2 Utility 2 | . . 2 Weapon 3 | . . 3 Highest Loss Streak 8 | . . 8 To Critical Strikes . | . . . Average Slot Usage (%) 96 | . 100 88 Engine 13 | . 14 13 Leg 27 | . 28 25 Device 27 | . 28 24 Energy Gun 13 | . 14 11 Ballistic Gun 13 | . 14 12 Peak Build Rating 9 | 9 9 9 Average Rating 8 | 5 9 7 On Entrance 6 | . 9 9 Naked Turns 5 | . . 5 Heaviest Build 15 | 15 11 11 Greatest Support 20 | 20 20 20 Greatest Overweight (x) 4 | 4 . 1 Average Overweight (x) . | . . . Largest Inventory Capacity 8 | 8 5 5 Average Capacity 5 | 7 5 5 Most Carried 5 | 1 5 5 Average Carried 3 | . 2 4 Final Capacity 5 | 5 5 5 Final Carried 5 | 1 5 4 Class Distribution -------------------- 100% | Mutant Dominant Class ---------------- Mutant | -10/Materials Mutant | -10/Mines Resources | -11 -10 -10 ----------- Run | Yrd Mat Min Matter Collected 357 | 287 61 9 Remotely . | . . . Salvage Created 287 | 83 152 52 Parts 25 | 15 8 2 Haulers Intercepted . | . . . Recyclers Shooed 1 | 1 . . Parts Field Recycled . | . . . Retrieved Matter . | . . . Parts Self-Destructed . | . . . Prevented . | . . . Kills | -11 -10 -10 ------- Run | Yrd Mat Min Combat Hostiles Destroyed 4 | . 3 1 Melee 1 | . . 1 Guns 3 | . 3 . Classes Destroyed 3 | 1 2 . Tunneler 5 | 5 . . Operator 1 | . 1 . Grunt 4 | . 3 1 Best Kill Streak 5 | 5 2 1 Combat Bots Only 2 | . 2 1 Max Kills in Single Turn 1 | 1 1 1 Gunslinging . | . . . Exploded . | . . . Melee 1 | . . 1 Uniques/NPCs Destroyed . | . . . Combat | -11 -10 -10 -------- Run | Yrd Mat Min Hostile Shots Fired 79 | . 16 63 Missed 22 | . 6 16 Damage Taken 790 | . 114 676 Core 258 | . 10 248 Absorbed by Shields . | . . . Core Remaining (%) 100 | 100 . . Volleys Fired 47 | 7 18 22 Largest 2 | 2 2 2 Hottest 60 | 60 60 60 Shots Fired 74 | 14 36 24 Gun 74 | 14 36 24 Cannon . | . . . Launcher . | . . . Special . | . . . Kinetic 38 | 7 18 13 Thermal 9 | . . 9 Explosive . | . . . Electromagnetic 27 | 7 18 2 Robot Hit Streak 8 | 3 8 6 Robot Miss Streak 6 | 2 6 4 Penetration Max . | . . . Secondary Targets 1 | . 1 . Max Gunslinging Chain 1 | . 1 . Shots Hit Robots 39 | 8 19 12 Core Hits 15 | 5 6 4 Critical Kills . | . . . Critical Parts Destroyed . | . . . Critical Strikes . | . . . Melee Attacks . | . . . Impact . | . . . Slashing . | . . . Piercing . | . . . Sneak Attacks . | . . . Combat Hostiles . | . . . Follow-up Attacks . | . . . Damage Inflicted 546 | 111 282 153 Guns 535 | 110 282 143 Cannons . | . . . Explosions . | . . . Melee . | . . . Ramming 11 | 1 . 10 Kinetic 265 | 68 132 65 Thermal 78 | . . 78 Explosive . | . . . Electromagnetic 192 | 42 150 . Impact . | . . . Slashing . | . . . Piercing . | . . . Highest Corruption . | . . . Average Corruption . | . . . Corruption Purged . | . . . Corruption Blocked . | . . . Overload Shots . | . . . Overflow Damage . | . . . Projectiles . | . . . Explosions . | . . . Melee . | . . . Knockbacks . | . . . Impact . | . . . Kinetic . | . . . Secondary . | . . . Self-Inflicted Damage 4 | . . 4 Shots . | . . . Rammed 4 | . . 4 Targets Rammed 7 | 3 . 4 Kicked 3 | 3 . . Crushed . | . . . Highest Temperature 180 | . 30 180 Average Temperature 38 | . 14 59 Received Heat Transfer 483 | . 60 423 Siege Activations . | . . . Robots Corrupted . | . . . Combat Hostiles . | . . . Parts Fried 1 | . 1 . Impact Corruptions . | . . . Robots Melted . | . . . Combat Hostiles . | . . . Parts Melted 1 | . . 1 Heat Transferred 175 | . . 175 Parts Sabotaged . | . . . Parts Stolen . | . . . Parts Stripped . | . . . Power Chain Reactions . | . . . Alert | -11 -10 -10 ------- Run | Yrd Mat Min Peak Influence 151 | 25 151 92 Initial 16 | . 16 . Average 49 | 8 67 30 Maximum Alert Level . | . . . Low Security (%) 100 | 100 100 100 Level 1 . | . . . Level 2 . | . . . Level 3 . | . . . Level 4 . | . . . Level 5 . | . . . High Security . | . . . Max Security . | . . . Squads Dispatched 5 | . 4 1 Investigation 3 | . 3 . Extermination . | . . . Reinforcement 1 | . 1 . Assault 1 | . . 1 Garrison . | . . . Intercept . | . . . Searches Triggered . | . . . Construction Impeded . | . . . Haulers Reinforced . | . . . Active Scanning Responses . | . . . Cargo Convoy Interrupts . | . . . Stealth | -11 -10 -10 --------- Run | Yrd Mat Min Distress Signals . | . . . Communications Jammed . | . . . Distress Signals . | . . . Times Spotted 15 | . 9 6 Peak Tracking Total 4 | . 3 4 Tactical Retreats . | . . . Traps | -11 -10 -10 ------- Run | Yrd Mat Min Traps Triggered 1 | . 1 . Indirectly . | . . . Trap Hack Attempts . | . . . Triggered . | . . . Disarmed . | . . . Reprogrammed . | . . . Reused . | . . . Traps Extracted . | . . . Installed . | . . . Triggered . | . . . Machines | -11 -10 -10 ---------- Run | Yrd Mat Min Machines Disabled 1 | . 1 . Max in Single Turn 1 | . 1 . Machines Repaired . | . . . Machines Dismantled . | . . . Machines Sabotaged . | . . . Overloaded Fab Kills . | . . . Hacking | -11 -10 -10 --------- Run | Yrd Mat Min Machines Accessed 3 | . 3 . Terminals 3 | . 3 . Fabricators . | . . . Repair Stations . | . . . Recycling Units . | . . . Scanalyzers . | . . . Garrison Access . | . . . Total Hacks 12 | . 12 . Successful 8 | . 8 . Failed 4 | . 4 . Catastrophic 1 | . 1 . Database Lockouts . | . . . Manual . | . . . Terminals 12 | . 12 . Fabricators . | . . . Repair Stations . | . . . Recycling Units . | . . . Scanalyzers . | . . . Garrison Access . | . . . Terminal Hacks 8 | . 8 . Prototype ID Bank 1 | . 1 . Terminal Index 1 | . 1 . Alert Level 1 | . 1 . Locate Traps 1 | . 1 . Surveillance Status 1 | . 1 . Patrol Status 1 | . 1 . Registered Components 1 | . 1 . Zone Layout 1 | . 1 . Fabricator Hacks . | . . . Repair Station Hacks . | . . . Recycling Unit Hacks . | . . . Scanalyzer . | . . . Garrison Access Hacks . | . . . Unauthorized Hacks . | . . . Terminals . | . . . Fabricators . | . . . Repair Stations . | . . . Recycling Units . | . . . Scanalyzers . | . . . Garrison Access . | . . . Data Cores Recovered 1 | . 1 . Used . | . . . Hacking Detections 3 | . 3 . Full Trace Events 1 | . 1 . Feedback Events . | . . . Feedback Blocked . | . . . Robot Schematics Acquired . | . . . Robots Built . | . . . Authchips . | . . . Time . | . . . Total Robot Build Rating . | . . . Part Schematics Acquired . | . . . Parts Built . | . . . Authchips . | . . . Time . | . . . Total Part Build Rating . | . . . Parts Repaired . | . . . Time . | . . . Parts Recycled . | . . . Recycled Matter . | . . . Retrieved Matter . | . . . Retrieved Components . | . . . Parts Scanalyzed . | . . . Part Schematics Acquired . | . . . Parts Damaged . | . . . Bothacking | -11 -10 -10 ------------ Run | Yrd Mat Min Used RIF Installer . | . . . Robots Hacked . | . . . Non-combat . | . . . Combat . | . . . Robot Hacks Applied . | . . . Relay Couplers Released . | . . . Fabnet Peak Effective % . | . . . Robots Rewired . | . . . Allies Hacked . | . . . Hacks Repelled . | . . . Allies | -11 -10 -10 -------- Run | Yrd Mat Min Total Allies 1 | . . 1 Largest Group 1 | . . 1 Highest-Rated Group 31 | . . 31 Highest-Rated Ally 31 | . . 31 Total Orders . | . . . Ally Attacks 13 | . . 13 Total Damage 127 | . . 127 Kills 4 | . . 4 Allies Corrupted . | . . . Allies Melted . | . . . Intel | -11 -10 -10 ------- Run | Yrd Mat Min Robot Analysis Total . | . . . Derelict Logs Recovered . | . . . Drone Launches . | . . . Drone Recoveries . | . . . Exploration | -11 -10 -10 ------------- Run | Yrd Mat Min Turns Passed 835 | 111 500 224 Spaces Moved 371 | 51 176 144 Core 21 | 18 . 3 Treads . | . . . Legs 350 | 33 176 141 Wheels . | . . . Hover . | . . . Flight . | . . . Fastest Speed 50 | 50 120 50 Average Speed 122 | 139 120 119 Slowest Speed 250 | 250 120 120 Overloaded Moves . | . . . Propulsion Burnouts . | . . . Robots Hopped . | . . . Cave-ins Triggered . | . . . Exploration Rate (%) 28 | 5 38 43 Regions Visited 2 Branch Regions 1 Pre-discovered Areas . | . . . Known Exits Taken . | . . . Unknown Exits Taken 2 | 1 1 . Scrap Searched . | . . . Spaces Dug . | . . . Terrain Destroyed . | . . . Melee . | . . . Projectile . | . . . AOE . | . . . Terrain Rammed . | . . . Walls Destroyed . | . . . Machines Disabled . | . . . Actions | -11 -10 -10 --------- Run | Yrd Mat Min Total 674 | 72 429 173 Wait 233 | 3 230 . Move 370 | 51 175 144 Hop . | . . . Pick Up 7 | 1 5 1 Fast Attach 7 | 7 . . Attach 2 | . . 2 Detach . | . . . Swap 1 | 1 . . Drop 1 | . 1 . Fire 47 | 7 18 22 Melee . | . . . Ram 4 | . . 4 Kick 2 | 2 . . Crush . | . . . Escape Stasis . | . . . Rewire . | . . . Trap . | . . . Miscellaneous . | . . . Route ------- -11/Scrapyard -10/Materials (discovered 2 exits: [Mat] / [*Min]) -10/Mines (discovered 1 exit: [Mat]) History --------- Turn | Location | Event 22 | -11/Scrapyard | Discovered new exit (range 16) 112 | -11/Scrapyard | Entered Materials 157 | -10/Materials | Discovered new exit (range 16) 305 | -10/Materials | Build established: Mutant 577 | -10/Materials | Discovered new exit (range 16) 612 | -10/Materials | Entered Mines 677 | -10/Mines | Met a Derelict testing a Signal Generator 685 | -10/Mines | Met a Derelict bent on vengeance 694 | -10/Mines | Discovered new exit (range 15) 814 | -10/Mines | Core integrity fell below 50% 826 | -10/Mines | Core integrity fell below 20% 836 | -10/Mines | Destroyed by G-47 Trooper with Particle Gun Last Messages --------------- OF ANOMALOUS SIGNAL. NEUTRALIZING." 00785_ EM Pulse Gun destroyed. 00787_ Critical hit (Burn: +37). 00798_ Imp. Terrain Scanner destroyed. 00809_ Assault Rifle destroyed. 00814_ Critical hit (Burn: +37). 00818_ Aluminum Leg destroyed. 00823_ Seismic Detector destroyed. 00826_ Sml. Laser destroyed. 00829_ Slammed into G-47 Trooper. 00829_ Particle Gun melted. 00829_ G-47 Trooper destroyed. [Achievement: Fist Fight] 00829_ Ion Engine destroyed. 00830_ Acquired 9 matter. 00830_ Slammed into G-34 Mercenary. 00830_ Destabilizing: Core damaged (-7). 00831_ Slammed into G-34 Mercenary. 00832_ G-34 Mercenary destroyed. 00833_ Acquired Sml. Laser. Map ----- +----------------------------------------------------+ | ??????????????????????????????? | | ????????????????????? ???? ???? | | ???????????????#??????????????? | | ?????????????????#????????????? | | ??????????????????????????????? | | ??????????????????????????????? | | ????????????????###?????#??#??? | | ????????????????# ##?????????? | | ??????????#?????# ###???????? | | ???????????????## ##??????? | | ??????#????????? #######? | | ??????#??????????# ## | | ???????#???#?????# # | | ????#????????????# | | ??????######??#??# # | | ?????## #####?# ## # | | ?????# #### ## # | | ?????## m ## ## | | ??????#g# # #### | | ??????#g## ##### #??## | | ??????#=### #??# ##???## | | ??#####%#?## ##??# #?????# | | #?# %*#??####???## #?????# | | ??#""" %#??????#???## ##???## | | ??#"""%=#???????????####?????# | | ??#"""@%#????????????????#???## | | ??#""" *#?????????????????????# | | ??# #?????????????????????? | | ??#######?????????????????????? | | #?????#??????#?????????????#??? | | ??????????????????? ???????#??? | | ??????????????????????????????? | | ??????????????????????????????? | | ??????#???????????????????????? | | ??????????????????????????????? | | ??????????????????????????????? | | ??????????????????????????????? | | ??????????????????????????????? | | ??????????????????????????????? | | ??????????????????????????????? | | ??????????????????????????????? | | ??????????????????????????????? | | ??????????????????????????????? | | ??????????????????????????????? | | ??????????????????????????????? | | ??????????????????????????????? | | ??????????????????????????????? | | ??????????????????????????????? | | ??????????????????????????????? | | ??????????????????????????????? | +----------------------------------------------------+ Best States ------------- Heat Dissipation 25 Energy Generation 10 Energy Capacity 250 Matter Stores 300 Matter Capacity 300 Sight Range 16 Terrain Scan Range 16 Terrain Scan Density 10 Evasion (%) 55 Item Schematics ----------------- None Robot Schematics ------------------ None Fabricated ------------ Nothing Alien Tech Used ----------------- None Achievements -------------- Fist Fight Challenges ------------ None Game ------ Seed CloakGravitonCutter Manual? 0 Play Time 00:19:19 Cumulative 10.8 hours Start 2025.01.18 @ 11:47:42 End 2025.01.18 @ 12:07:04 Sessions 1 Manual Loads 0 Difficulty Rogue Special Mode None Game No. 6 Rogue 6 Adventurer 0 Explorer 0 Win Type - Total 0 Types 0/0/0/0/0/0/0/0/0 Lore% 7 Gallery% 15 Achievement% 16 Wizard Run 0 Options --------- Layout 1 ASCII 0 Keyboard 0 Movement Numpad Keybinds 0 Fullscreen 2 Font 48/Smallcaps Map View 50x35 Zoom Use 0% Tactical HUD 1 Map Filters NONE Filters NONE Steam 0 RUN: 17b02829-dac6-44de-946b-2085c867d1f1